Cogmind - Beta 9.6 @@@ ROGUE MODE // 2020.07.12 @ 18:30:21 Player: GGOBC-006 Result: Destroyed by Y-45 Defender with Heavy Assault Rifle Performance ------------- Evolutions (1) 500 Regions Visited (3) 600 Robots Destroyed (83) 415 Value Destroyed (1267) 1267 Prototype IDs (2) 40 Alien Tech Used (0) 0 Bonus (0) 0 TOTAL SCORE: 2822 Bonus ------- None Cogmind --------- Core Integrity 0/400 Matter 237/300 Energy 288/290 System Corruption 0% Temperature Cool (87) Movement Rolling (80) Location -9/Storage Parts ------- > --- POWER (3) -------- Light Ion Engine Improved Ion Engine > --- PROPULSION (2) --- Wheel Wheel > --- UTILITY (2) ------ (None) > --- WEAPON (2) ------- Improved Assault Rifle Improved Assault Rifle > --- INVENTORY (4) ---- Light Ion Engine Wheel Improved Terrain Scanner Grenade Launcher Peak State ------------ > --- POWER ------------ Improved Ion Engine Cooled Ion Engine Light Nuclear Core > --- PROPULSION ------- Wheel Wheel > --- UTILITY ---------- Terrain Scanner Terrain Scan Processor > --- WEAPON ----------- Beam Rifle Particle Cannon > --- INVENTORY -------- Light Ion Engine Wheel Improved Terrain Scanner Grenade Launcher [Rating: 17] Favorites ----------- Power Light Nuclear Core Engine Improved Ion Engine Power Core Light Nuclear Core Propulsion Light Treads Treads Light Treads Wheel Wheel Flight Unit VTOL Module Utility Seismic Analyzer Device Terrain Scanner Storage Small Matter Pod Processor Seismic Analyzer Protection Light Armor Plating Weapon Particle Cannon Energy Gun Small Laser Energy Cannon Particle Cannon Ballistic Gun Assault Rifle Launcher Grenade Launcher Special Melee Weapon Datajack Build | -11 -10 -9 -9 ------- Run | Scr Mat Mat Sto Slots Evolved 2 | . . 2 . Power 2 | . . 2 . Propulsion . | . . . . Utility . | . . . . Weapon . | . . . . Parts Attached 61 | 9 11 14 27 Power 13 | 1 1 3 8 Engine 12 | 1 . 3 8 Core 1 | . 1 . . Reactor . | . . . . Propulsion 15 | 2 4 4 5 Treads 2 | 2 . . . Leg . | . . . . Wheel 11 | . 2 4 5 Hover . | . . . . Flight 2 | . 2 . . Utility 16 | 4 2 2 8 Device 9 | 2 1 2 4 Storage 2 | . . . 2 Processor 3 | 2 1 . . Hackware . | . . . . Protection 2 | . . . 2 Artifact . | . . . . Weapon 17 | 2 4 5 6 Energy Gun 6 | 2 . 2 2 Energy Cannon 1 | . . 1 . Ballistic Gun 5 | . 1 . 4 Ballistic Cannon . | . . . . Launcher 3 | . 2 1 . Special Weapon . | . . . . Impact Weapon . | . . . . Slashing Weapon . | . . . . Piercing Weapon . | . . . . Special Melee Weapon 2 | . 1 1 . Unidentified Prototypes 2 | . . 1 1 Parts Lost 20 | . 6 3 11 Power 6 | . 1 . 5 Propulsion 2 | . 1 . 1 Utility 4 | . 1 . 3 Weapon 8 | . 3 3 2 Highest Loss Streak 3 | . 3 1 3 Average Slot Usage (%) 84 | . 77 86 92 Engine 13 | . 5 10 25 Core 5 | . 3 11 5 Treads 8 | . 18 . . Wheel 9 | . . 11 21 Flight 4 | . 4 10 . Device 9 | . 10 11 8 Processor 9 | . 14 11 2 Protection 1 | . . . 5 Energy Gun 7 | . 8 7 7 Energy Cannon 3 | . . 4 8 Ballistic Gun 5 | . 6 3 5 Special Melee Weapon 2 | . 2 4 . Naked Turns . | . . . . Heaviest Build 28 | 9 9 28 27 Greatest Support 40 | 40 40 20 20 Greatest Overweight (x) 2 | . 1 1 2 Average Overweight (x) . | . . . . Largest Inventory Capacity 4 | 4 4 4 4 Average Capacity 4 | 4 4 4 4 Most Carried 4 | 4 4 4 4 Average Carried 3 | 3 3 4 4 Final Capacity 4 | 4 4 4 4 Final Carried 4 | 4 4 4 4 Class Distribution -------------------- 59% | Mutant 40% | Scavenger-Mutant Dominant Class ---------------- Mutant | -10/Materials Mutant | -9/Materials Scavenger-Mutant | -9/Storage Resources | -11 -10 -9 -9 ----------- Run | Scr Mat Mat Sto Matter Collected 1429 | 290 609 173 357 Remotely . | . . . . Salvage Created 2405 | 186 704 334 1181 Parts 186 | 24 62 27 73 Haulers Intercepted 6 | . 2 1 3 Recyclers Shooed 7 | . 4 1 2 Parts Field Recycled . | . . . . Retrieved Matter . | . . . . Parts Self-Destructed . | . . . . Prevented . | . . . . Kills | -11 -10 -9 -9 ------- Run | Scr Mat Mat Sto Combat Hostiles Destroyed 30 | . 13 5 12 Guns 14 | . 6 3 5 Cannons 7 | . . . 7 AOE 9 | . 7 2 . Classes Destroyed 11 | 3 7 1 . Worker 12 | 2 3 . 7 Builder 11 | . 7 3 1 Tunneler 9 | 5 3 1 . Hauler 6 | . 2 1 3 Recycler 9 | 1 3 . 5 Mechanic 2 | . 1 1 . Operator 1 | . 1 . . Watcher 3 | . 1 . 2 Swarmer 9 | . 6 . 3 Grunt 16 | . 7 4 5 Sentry 5 | . . 1 4 Best Kill Streak 16 | 3 16 3 5 Combat Bots Only 6 | . 6 2 4 Max Kills in Single Turn 2 | 1 2 1 1 Gunslinging . | . . . . Exploded 2 | . 2 1 . Melee . | . . . . Uniques/NPCs Destroyed . | . . . . Combat | -11 -10 -9 -9 -------- Run | Scr Mat Mat Sto Damage Taken 2293 | . 808 183 1302 Core 615 | . 204 41 370 Absorbed by Shields . | . . . . Core Remaining (%) 59 | 100 18 . . Volleys Fired 276 | 15 123 37 101 Largest 2 | 2 2 2 2 Hottest 124 | 80 80 124 124 Shots Fired 379 | 28 136 51 164 Gun 278 | 28 110 33 107 Cannon 71 | . . 14 57 Launcher 30 | . 26 4 . Special . | . . . . Kinetic 149 | . 88 1 60 Thermal 166 | 13 14 35 104 Explosive 30 | . 26 4 . Electromagnetic 34 | 15 8 11 . Robot Hit Streak 13 | 8 13 10 12 Robot Miss Streak 6 | 2 2 2 6 Penetration Max . | . . . . Secondary Targets 1 | . . . 1 Max Gunslinging Chain 1 | . . . 1 Shots Hit Robots 228 | 14 89 26 99 Core Hits 114 | 9 52 18 35 Critical Hits 2 | . 1 . 1 Critical Kills 2 | . 1 . 1 Critical Parts Destroyed . | . . . . Melee Attacks 8 | . 8 . . Impact . | . . . . Slashing . | . . . . Piercing . | . . . . Sneak Attacks 3 | . 3 . . Combat Hostiles . | . . . . Follow-up Attacks . | . . . . Damage Inflicted 4453 | 169 1998 605 1681 Guns 2148 | 163 804 259 922 Cannons 883 | . . 124 759 Explosions 1412 | . 1190 222 . Melee . | . . . . Ramming 10 | 6 4 . . Kinetic 1290 | . 613 14 663 Thermal 1595 | 95 112 370 1018 Explosive 1325 | . 1190 135 . Electromagnetic 233 | 68 79 86 . Impact . | . . . . Slashing . | . . . . Piercing . | . . . . Highest Corruption . | . . . . Average Corruption . | . . . . Corruption Purged . | . . . . Overload Shots . | . . . . Overflow Damage 56 | . 55 . 1 Projectiles 1 | . . . 1 Explosions 55 | . 55 . . Melee . | . . . . Knockbacks 1 | . 1 . . Impact 1 | . 1 . . Kinetic . | . . . . Secondary . | . . . . Self-Inflicted Damage 279 | . 248 31 . Shots 11 | . 10 1 . Rammed 3 | 1 2 . . Targets Rammed 3 | 1 2 . . Kicked . | . . . . Crushed . | . . . . Highest Temperature 631 | 90 204 279 631 Average Temperature 139 | 33 79 117 164 Received Heat Transfer 723 | . 219 81 423 Effects 29 | . . 1 28 Shutdowns 12 | . . . 12 Energy Bleed 8 | . . 1 7 Interference 1 | . . . 1 Matter Decay 1 | . . . 1 Short Circuit 1 | . . . 1 Damage (minor) 1 | . . . 1 Damage (major) 3 | . . . 3 Damage (core) 2 | . . . 2 Siege Activations . | . . . . Robots Corrupted . | . . . . Combat Hostiles . | . . . . Parts Fried . | . . . . Impact Corruptions . | . . . . Robots Melted . | . . . . Combat Hostiles . | . . . . Parts Melted 6 | . 1 1 4 Heat Transferred 3289 | 225 250 779 2035 Parts Sabotaged . | . . . . Parts Stolen . | . . . . Parts Stripped . | . . . . Power Chain Reactions 2 | . . 2 . Missiles Intercepted . | . . . . Alert | -11 -10 -9 -9 ------- Run | Scr Mat Mat Sto Peak Influence 396 | 40 396 250 294 Average Influence 170 | 24 188 162 208 Maximum Alert Level 1 | . 1 1 1 Low Security (%) 55 | 100 55 56 37 Level 1 44 | . 44 43 62 Level 2 . | . . . . Level 3 . | . . . . Level 4 . | . . . . Level 5 . | . . . . High Security . | . . . . Max Security . | . . . . Squads Dispatched 3 | . 2 . 1 Investigation . | . . . . Extermination . | . . . . Reinforcement 3 | . 2 . 1 Assault . | . . . . Garrison . | . . . . Intercept . | . . . . Construction Impeded . | . . . . Haulers Reinforced . | . . . . Stealth | -11 -10 -9 -9 --------- Run | Scr Mat Mat Sto Distress Signals 4 | . 1 . 3 Communications Jammed . | . . . . Distress Signals . | . . . . Times Spotted 52 | . 23 8 21 Peak Tracking Total 6 | . 6 2 6 Tactical Retreats . | . . . . Traps | -11 -10 -9 -9 ------- Run | Scr Mat Mat Sto Traps Triggered 1 | . 1 . . Indirectly . | . . . . Trap Hack Attempts . | . . . . Triggered . | . . . . Disarmed . | . . . . Reprogrammed . | . . . . Reused . | . . . . Traps Extracted . | . . . . Installed . | . . . . Triggered . | . . . . Machines | -11 -10 -9 -9 ---------- Run | Scr Mat Mat Sto Machines Disabled 7 | . 4 2 1 Max in Single Turn 1 | . 1 1 1 Machines Sabotaged . | . . . . Garrisons Compromised . | . . . . Overloaded Fab Kills . | . . . . Fab Network Shutdowns . | . . . . Hacking | -11 -10 -9 -9 --------- Run | Scr Mat Mat Sto Machines Accessed 2 | . 2 . . Terminals 2 | . 2 . . Fabricators . | . . . . Repair Stations . | . . . . Recycling Units . | . . . . Scanalyzers . | . . . . Garrison Access . | . . . . Total Hacks 2 | . 2 . . Successful 2 | . 2 . . Failed . | . . . . Catastrophic . | . . . . Database Lockouts . | . . . . Manual 2 | . 2 . . Terminals 2 | . 2 . . Fabricators . | . . . . Repair Stations . | . . . . Recycling Units . | . . . . Scanalyzers . | . . . . Garrison Access . | . . . . Terminal Hacks . | . . . . Fabricator Hacks . | . . . . Repair Station Hacks . | . . . . Recycling Unit Hacks . | . . . . Scanalyzer . | . . . . Garrison Access Hacks . | . . . . Unauthorized Hacks 2 | . 2 . . Terminals 2 | . 2 . . Track 1 | . 1 . . Assimilate 1 | . 1 . . Fabricators . | . . . . Repair Stations . | . . . . Recycling Units . | . . . . Scanalyzers . | . . . . Garrison Access . | . . . . Data Cores Recovered . | . . . . Used . | . . . . Hacking Detections 2 | . 2 . . Full Trace Events . | . . . . Feedback Events . | . . . . Feedback Blocked . | . . . . Robot Schematics Acquired . | . . . . Robots Built . | . . . . Matter . | . . . . Time . | . . . . Total Robot Build Rating . | . . . . Part Schematics Acquired . | . . . . Parts Built . | . . . . Matter . | . . . . Time . | . . . . Total Part Build Rating . | . . . . Parts Repaired . | . . . . Time . | . . . . Parts Recycled . | . . . . Recycled Matter . | . . . . Retrieved Matter . | . . . . Retrieved Components . | . . . . Parts Scanalyzed . | . . . . Part Schematics Acquired . | . . . . Parts Damaged . | . . . . Bothacking | -11 -10 -9 -9 ------------ Run | Scr Mat Mat Sto Used RIF Installer . | . . . . Robots Hacked 3 | . 3 . . Non-combat 3 | . 3 . . Combat . | . . . . Robot Hacks Applied 3 | . 3 . . parse_system 2 | . 2 . . check_alert 1 | . 1 . . Relay Couplers Released . | . . . . Robots Rewired . | . . . . Allies Hacked . | . . . . Hacks Repelled . | . . . . Allies | -11 -10 -9 -9 -------- Run | Scr Mat Mat Sto Total Allies . | . . . . Largest Group . | . . . . Highest-Rated Group . | . . . . Highest-Rated Ally . | . . . . Total Orders . | . . . . Ally Attacks . | . . . . Total Damage . | . . . . Kills . | . . . . Allies Corrupted . | . . . . Allies Melted . | . . . . Intel | -11 -10 -9 -9 ------- Run | Scr Mat Mat Sto Robot Analysis Total . | . . . . Derelict Logs Recovered . | . . . . Drone Launches . | . . . . Drone Recoveries . | . . . . Exploration | -11 -10 -9 -9 ------------- Run | Scr Mat Mat Sto Turns Passed 2118 | 244 866 397 611 Spaces Moved 1065 | 117 504 226 218 Core 5 | 5 . . . Treads 342 | 112 230 . . Legs . | . . . . Wheels 379 | . 37 124 218 Hover . | . . . . Flight 339 | . 237 102 . Fastest Speed 37 | 50 37 37 80 Average Speed 95 | 155 96 68 88 Slowest Speed 160 | 160 160 117 100 Overloaded Moves . | . . . . Propulsion Burnouts . | . . . . Robots Hopped . | . . . . Cave-ins Triggered . | . . . . Exploration Rate (%) 29 | 6 71 11 29 Regions Visited 3 Branch Regions 1 Pre-discovered Areas . | . . . . Known Exits Taken . | . . . . Unknown Exits Taken 3 | 1 1 1 . Scrap Searched . | . . . . Spaces Dug . | . . . . Terrain Destroyed 108 | . 80 28 . Melee . | . . . . Projectile . | . . . . AOE 108 | . 80 28 . Actions | -11 -10 -9 -9 --------- Run | Scr Mat Mat Sto Total 1777 | 151 736 416 474 Wait 327 | 1 83 133 110 Move 1062 | 116 503 225 218 Hop . | . . . . Pick Up 8 | 6 2 . . Fast Attach 38 | 7 6 8 17 Attach 3 | . 3 . . Detach 1 | . 1 . . Swap 20 | 2 2 6 10 Drop 31 | 3 3 7 18 Fire 276 | 15 123 37 101 Melee 8 | . 8 . . Ram . | . . . . Kick . | . . . . Crush 3 | 1 2 . . Escape Stasis . | . . . . Rewire . | . . . . Trap . | . . . . Miscellaneous . | . . . . Route ------- -11/Scrapyard -10/Materials (discovered 3 exits: [*Mat x2] / [*Min]) -9/Materials -9/Storage History --------- Turn | Location | Event 44 | -11/Scrapyard | Discovered new exit (range 15) 245 | -11/Scrapyard | Entered Materials 311 | -10/Materials | Build established: Mutant 612 | -10/Materials | Core integrity fell below 50% 691 | -10/Materials | Lost 3 parts (1n1u1w) 738 | -10/Materials | Discovered new exit (range 15) 983 | -10/Materials | Discovered new exit (range 7) 1098 | -10/Materials | Core integrity fell below 20% 1106 | -10/Materials | Discovered new exit (range 7) 1111 | -10/Materials | Entered another Materials area 1111 | -9/Materials | Evolved 2 slots: Power x2 1260 | -9/Materials | Discovered new exit (range 16) 1508 | -9/Materials | Entered Storage 1573 | -9/Storage | Core integrity fell below 50% 1606 | -9/Storage | Build established: Scavenger-Mutant 1946 | -9/Storage | Lost 3 parts (1p1u1w) 2017 | -9/Storage | Lost 3 parts (1p1n1w) 2094 | -9/Storage | Core integrity fell below 20% 2119 | -9/Storage | Destroyed by Y-45 Defender with Heavy Assault Rifle Last Messages --------------- Dropped Imp. Assault Rifle. Acquired Heat Sink. Acquired 38 matter. A-02 Transporter suffers critical hit. A-02 Transporter destroyed. Acquired 6 matter. Dropped Wheel. Acquired 10 matter. U-05 Engineer destroyed. Acquired 6 matter. Dropped Wheel. Acquired 10 matter. A-02 Transporter destroyed. Imp. Ion Engine destroyed. Lgt. Armor Plating destroyed. Heat Sink destroyed. G-47 Trooper destroyed. Switching to secondary target: G-34 Mercenary. K-01 Serf collects debris. G-34 Mercenary destroyed. Map ----- +----------------------------------------------------+ | | | | | | | | | | | | | | | ?????????????????????????????????????????????????? | | ?????????????????????????????????????????????????? | | ?????????????????????????????????????????????????? | | ?????????????????????????????????????????????????? | | ?????????????????????????????????????????????????? | | ?????????????????????????????????????????????????? | | ???????????????????????????#?????????????????????? | | ?????????????????????????? #?????????????????????? | | ?????????????????????????? #?????????????????????? | | ?????????????????????????? #?????????????????????? | | ???????????????????????""" #?????????????????????? | | ??????????????????????? #?????????????????????? | | ????????????????????????"" ????#?????????????????? | | ????????????????????????"" ??? #?????????????????? | | ????????????????????????"" ?? #?????????????????? | | ???????????????????????? ?# ##????????????????? | | ?????????????# #######+##! #????????????????? | | ?????????????# Y !==]%k! #????????????????? | | ?????????????# k ga*@]] T #????????????????? | | ?????????????# #######/## #????????????????? | | ???????????????????# !m[#????#????????????????? | | ???????????????????# #?????????????????????? | | ???????????????????# #??????#+#????????????? | | ???????????????????# #??????# #????????????? | | ???????????????????# #??????# #????????????? | | ???????????????????# ######## #????????????? | | ???????????????????# + !%= +????????????? | | ???????????????????# #####! #????????????? | | ???????????????????#########???# #????????????? | | ???????????????????????????????#%!%!#????????????? | | ???????????????????????????????# !=%#???????????? | | ??????????????????????????????## !=*############## | | ?????????????????????????????? # =!%!! | | ???????????????????????????????+ !!=! | | ???????????????????????????????# | | ???????????????????????????????# ############### | | ???????????????????????????????# !############### | | ???????????????????????????????# %# #? | | ????????????????????????????#### %# ## | | ????????????????????????????#""" %[#* ## | | ????????????????????????????#"R[[ += #? | | ????????????????????????????#"""[ %# #? | | ?????????????????????###????#### !!############### | +----------------------------------------------------+ Best States ------------- Heat Dissipation 38 Coolant Potential 50 Energy Generation 26 Energy Capacity 475 Matter Stores 358 Matter Capacity 400 Sight Range 16 Terrain Scan Range 16 Terrain Scan Density 85 Armor Coverage 150 Evasion (%) 62 Recoil Reduction 2 Item Schematics ----------------- None Robot Schematics ------------------ None Fabricated ------------ Nothing Alien Tech Used ----------------- None Achievements -------------- None Challenges ------------ None Game ------ Seed LinkedQuantumPit Manual? 0 Play Time 00:23:44 Cumulative 38.9 hours Start 2020.07.12 @ 00:50:07 End 2020.07.12 @ 18:30:21 Sessions 3 Manual Loads 0 Difficulty Rogue Special Mode None Game No. 34 Rogue 34 Adventurer 0 Explorer 0 Win Type - Total 0 Types 0/0/0/0/0/0/0 Lore% 43 Gallery% 38 Achievement% 33 Wizard Run 0 Options --------- ASCII 0 Keyboard 0 Movement Numpad Keybinds 0 Fullscreen 2 Font 18/TerminusBold Map View 76x50 Tactical HUD 0 Map Filters NONE Filters NONE Steam 1 RUN: 06351afd-5b96-4e6f-a97a-51d7744ee423